{"text_format":"3","workbook":"xlsx","n_sheets":6,"sheets":["Satış Ziyareti Günlüğü","Müşteri İletişim Bilgileri","Ziyaret Öncesi","İlk Ziyaret","Satış Bilgileri","İzleme"],"not_rendered":{"defined_names":14},"read":"whole","date_system":"1900"}

{"sheet":"Satış Ziyareti Günlüğü","index":0,"n_rows":13,"n_cols":7,"rows_kept":13}
[null," Şirket Adı"]
[null,"Satış Ziyareti Günlüğü"]
[null,"Ziyaret Numarası","Müşteri","Şirket","Tarih","Saat","Notlar"]
[null,1,"Burak Şahin",{"$f":"IF(SatışZiyaretiGünlüğü[[#This Row],[Müşteri]]=\"\",\"\",IFERROR(VLOOKUP(SatışZiyaretiGünlüğü[[#This Row],[Müşteri]],MüşteriİletişimBilgileri[],2,0),\"Not Found\"))","v":"ProseWare, Inc."},{"$f":"TODAY()-5","v":"2016-12-18"},"08:30:00"]
[null,2,"Turgay Elmas",{"$f":"IF(SatışZiyaretiGünlüğü[[#This Row],[Müşteri]]=\"\",\"\",IFERROR(VLOOKUP(SatışZiyaretiGünlüğü[[#This Row],[Müşteri]],MüşteriİletişimBilgileri[],2,0),\"Not Found\"))","v":"Litware, Inc."},{"$f":"TODAY()-5","v":"2016-12-18"},"09:00:00"]
[null,3,"Pınar Karaca",{"$f":"IF(SatışZiyaretiGünlüğü[[#This Row],[Müşteri]]=\"\",\"\",IFERROR(VLOOKUP(SatışZiyaretiGünlüğü[[#This Row],[Müşteri]],MüşteriİletişimBilgileri[],2,0),\"Not Found\"))","v":"Northwind Traders"},"2016-12-18","09:30:00"]
[null,4,"Mustafa Yıldız",{"$f":"IF(SatışZiyaretiGünlüğü[[#This Row],[Müşteri]]=\"\",\"\",IFERROR(VLOOKUP(SatışZiyaretiGünlüğü[[#This Row],[Müşteri]],MüşteriİletişimBilgileri[],2,0),\"Not Found\"))","v":"Lucerne Publishing"},"2016-12-18","10:00:00"]
[null,5,"Mehmet Yıldırım",{"$f":"IF(SatışZiyaretiGünlüğü[[#This Row],[Müşteri]]=\"\",\"\",IFERROR(VLOOKUP(SatışZiyaretiGünlüğü[[#This Row],[Müşteri]],MüşteriİletişimBilgileri[],2,0),\"Not Found\"))","v":"Margie's Travel"},"2016-12-18","10:30:00"]
[null,6,"Burak Şahin",{"$f":"IF(SatışZiyaretiGünlüğü[[#This Row],[Müşteri]]=\"\",\"\",IFERROR(VLOOKUP(SatışZiyaretiGünlüğü[[#This Row],[Müşteri]],MüşteriİletişimBilgileri[],2,0),\"Not Found\"))","v":"ProseWare, Inc."},{"$f":"TODAY()-3","v":"2016-12-20"},"11:00:00"]
[null,7,"Turgay Elmas",{"$f":"IF(SatışZiyaretiGünlüğü[[#This Row],[Müşteri]]=\"\",\"\",IFERROR(VLOOKUP(SatışZiyaretiGünlüğü[[#This Row],[Müşteri]],MüşteriİletişimBilgileri[],2,0),\"Not Found\"))","v":"Litware, Inc."},{"$f":"TODAY()-3","v":"2016-12-20"},"11:30:00"]
[null,8,"Burak Şahin",{"$f":"IF(SatışZiyaretiGünlüğü[[#This Row],[Müşteri]]=\"\",\"\",IFERROR(VLOOKUP(SatışZiyaretiGünlüğü[[#This Row],[Müşteri]],MüşteriİletişimBilgileri[],2,0),\"Not Found\"))","v":"ProseWare, Inc."},{"$f":"TODAY()-1","v":"2016-12-22"},"12:00:00"]
[null,9,"Mehmet Yıldırım",{"$f":"IF(SatışZiyaretiGünlüğü[[#This Row],[Müşteri]]=\"\",\"\",IFERROR(VLOOKUP(SatışZiyaretiGünlüğü[[#This Row],[Müşteri]],MüşteriİletişimBilgileri[],2,0),\"Not Found\"))","v":"Margie's Travel"},{"$f":"TODAY()-1","v":"2016-12-22"},"12:30:00"]
[null,10,"Mehmet Yıldırım",{"$f":"IF(SatışZiyaretiGünlüğü[[#This Row],[Müşteri]]=\"\",\"\",IFERROR(VLOOKUP(SatışZiyaretiGünlüğü[[#This Row],[Müşteri]],MüşteriİletişimBilgileri[],2,0),\"Not Found\"))","v":"Margie's Travel"},{"$f":"TODAY()","v":"2016-12-23"},"13:00:00"]

{"sheet":"Müşteri İletişim Bilgileri","index":1,"n_rows":8,"n_cols":8,"rows_kept":8}
[null,{"$f":"ŞirketAdı","v":" Şirket Adı"}]
[null,"Müşteri İletişim Bilgileri"]
[null,"Müşteri Adı","Şirket Adı","Adres","Şehir, Posta Kodu","Birincil Telefon","İkincil Telefon","E-posta"]
[null,"Turgay Elmas","Litware, Inc.","100 Main St","Cherrytown, NH 123456","(541) 555-0135","(541) 555-0136","turgay@litwareinc.com"]
[null,"Mustafa Yıldız","Lucerne Publishing","567 Second Ave","Spaulding, NY 23456","(425) 555-0198","(425) 555-0199","mustafa@lucernepublishing.com"]
[null,"Mehmet Yıldırım","Margie's Travel","987 Orange St","Mountain View, IL 34567","(888) 555-0125","(888) 555-0126","mehmet@margiestravel.com"]
[null,"Pınar Karaca","Northwind Traders","890 N 3rd Ave","Chatham, CA 45678","(541) 555-0175","(541) 555-0176","pinar@northwindtraders.com"]
[null,"Burak Şahin","ProseWare, Inc.","123 Major Dr","Shelbyville, MA 56789","(509) 555-0150","(509) 555-0151","burak@proseware.com"]

{"sheet":"Ziyaret Öncesi","index":2,"n_rows":13,"n_cols":3,"rows_kept":13}
[null,{"$f":"ŞirketAdı","v":" Şirket Adı"}]
[null,"Satış Ziyareti Denetim Listesi"]
[null,"Onay kutusu","Ziyaret öncesi"]
[null,null,"Müşteri geçmişini gözden geçirme"]
[null,null,"Müşterinin işveren geçmişini gözden geçirme"]
[null,null,"Öncelikleri ve satış stratejisini gözden geçirme"]
[null,null,"Öğe ekleyin"]
[null,null,"Öğe ekleyin"]
[null,null,"Öğe ekleyin"]
[null,null,"Öğe ekleyin"]
[null,null,"Öğe ekleyin"]
[null,null,"Öğe ekleyin"]
[null,null,"Öğe ekleyin"]

{"sheet":"İlk Ziyaret","index":3,"n_rows":13,"n_cols":3,"rows_kept":13}
[null,{"$f":"ŞirketAdı","v":" Şirket Adı"}]
[null,"Satış Ziyareti Denetim Listesi"]
[null,"Onay kutusu","İlk ziyaret"]
[null,null,"Uygun kişiyle doğrudan görüşme"]
[null,null,"Sade bir açıklama"]
[null,null,"Öğe ekleyin"]
[null,null,"Öğe ekleyin"]
[null,null,"Öğe ekleyin"]
[null,null,"Öğe ekleyin"]
[null,null,"Öğe ekleyin"]
[null,null,"Öğe ekleyin"]
[null,null,"Öğe ekleyin"]
[null,null,"Öğe ekleyin"]

{"sheet":"Satış Bilgileri","index":4,"n_rows":13,"n_cols":3,"rows_kept":13}
[null,{"$f":"ŞirketAdı","v":" Şirket Adı"}]
[null,"Satış Ziyareti Denetim Listesi"]
[null,"Onay kutusu","Satış bilgileri"]
[null,null,"Ürün/hizmet hakkında sade ve etkileyici bir açıklama"]
[null,null,"Tüm temel bilgilerin aktarılması"]
[null,null,"Web üzerindeki erişim kanallarından (web sitesi, sosyal ağlar vb.) bahsetme"]
[null,null,"Öğe ekleyin"]
[null,null,"Öğe ekleyin"]
[null,null,"Öğe ekleyin"]
[null,null,"Öğe ekleyin"]
[null,null,"Öğe ekleyin"]
[null,null,"Öğe ekleyin"]
[null,null,"Öğe ekleyin"]

{"sheet":"İzleme","index":5,"n_rows":13,"n_cols":3,"rows_kept":13}
[null,{"$f":"ŞirketAdı","v":" Şirket Adı"}]
[null,"Satış Ziyareti Denetim Listesi"]
[null,"Onay kutusu","İzleme bilgileri"]
[null,null,"Müşterinin iletişim bilgileri"]
[null,null,"Müşterinin kişisel bilgileri"]
[null,null,"Müşteri tercihleri"]
[null,null,"Kişiyle iletişim yeniden zamanlandı mı?"]
[null,null,"Satış yapıldı mı?"]
[null,null,"Öğe ekleyin"]
[null,null,"Öğe ekleyin"]
[null,null,"Öğe ekleyin"]
[null,null,"Öğe ekleyin"]
[null,null,"Öğe ekleyin"]